fUSD/lending_fUSD_20240713
["ID","MTS","AMOUNT","RATE_DAILY","PERIOD"]
[331949363,1720890589612,15879.39275352,0.00011199,2]
[331949365,1720890592087,-345.96800355,0.0001126,2]
[331949366,1720890592119,-235.638761,0.0001126,2]
[331949380,1720890631709,-264.361239,0.0001126,2]
[331949381,1720890631719,-329.19227369,0.00012021,2]
[331949382,1720890631769,-617.19591231,0.00012021,2]
[331949383,1720890631779,-62.53408769,0.00012082,2]
[331949384,1720890631790,-437.46591231,0.00012082,2]
[331949385,1720890631800,-302.23037517,0.00012302,2]
[331949386,1720890631848,-0.01176131,0.00012302,2]
[331949387,1720890631859,-1174.76227741,0.00012302,2]
[331949388,1720890631870,-137.38772259,0.00012302,2]
[331949389,1720890631885,-19.12685609,0.00012302,2]
[331949390,1720890631898,-765.33396385,0.00012302,2]
[331949391,1720890631908,-174.58594608,0.00012302,2]
[331949392,1720890631917,-2876.85209186,0.00012314,2]
[331949393,1720890631926,-7835.2406247,0.00012617,2]
[331949394,1720890631937,-4781.02268136,0.00012617,2]
[331949395,1720890631948,-968.08911481,0.00012617,2]
[331949396,1720890631960,-846.64757913,0.00012617,2]
[331949397,1720890631970,-250.0,0.00012632,2]
[331949398,1720890631980,-200.0,0.00012636,2]
[331949399,1720890631989,-2371.19,0.00012637,2]
[331949400,1720890631998,-150.0,0.00012642,2]
[331949401,1720890632008,-160.95,0.00012646,2]
[331949402,1720890632018,-1230.47,0.00012648,2]
[331949403,1720890632027,-250.0,0.00012651,2]
[331949404,1720890632037,-390.15,0.00012656,2]
[331949405,1720890632046,-627.99,0.00012659,2]
[331949406,1720890632055,-345.55,0.00012679,2]
[331949407,1720890632064,-168.16,0.0001275,2]
[331949408,1720890632073,-1000.0,0.0001276,2]
[331949409,1720890632082,-11551.86,0.00012792,2]
[331949410,1720890632092,-366.57,0.00012862,2]
[331949411,1720890632101,-418.69589919,0.00012904,2]
[331949412,1720890632110,-636.0,0.00012984,2]
[331949413,1720890632121,-436.43793814,0.00013128,2]
[331949414,1720890632130,-1159.22294313,0.00013128,2]
[331949415,1720890632140,-1159.22294313,0.00013128,2]
[331949416,1720890632149,-150.0,0.00013515,2]
[331949417,1720890632159,-261.72962356,0.00013516,2]
[331949418,1720890632169,-203.92024674,0.00013516,2]
[331949419,1720890632178,-518.63271752,0.00013516,2]
[331949420,1720890632188,-1156.82676208,0.00013516,2]
[331949421,1720890632198,-19895.33390856,0.000136,2]
[331949422,1720890632207,-155.0,0.00013648,2]
[331949423,1720890632216,-671.93,0.00013699,2]
[331949424,1720890632225,-1461.54,0.00013699,2]
[331949425,1720890632235,-200.0,0.00013699,2]
[331949426,1720890632244,-250.0,0.00013699,2]
[331949427,1720890632253,-1168.42,0.00013699,2]
[331949428,1720890632262,-4598.75,0.00013699,2]
[331949429,1720890632271,-500.0,0.00013699,2]
[331949430,1720890632280,-2751.0,0.00013699,2]
[331949431,1720890632289,-3818.986,0.00013706,2]
[331949432,1720890632299,-5198.787,0.00013706,2]
[331949433,1720890632308,-1665.0,0.00013706,2]
[331949434,1720890632317,-5831.808,0.00013706,2]
[331949435,1720890632326,-1202.706,0.00013706,2]
[331949436,1720890632335,-500.0,0.00013726,2]
[331949437,1720890632344,-150.0,0.00013727,2]
[331949438,1720890632353,-150.0,0.00013728,2]
[331949439,1720890632363,-11693.74690876,0.00013736,2]
[331949440,1720890632374,-150.0,0.00013738,2]
[331949441,1720890632383,-150.0,0.00013738,2]
[331949442,1720890632392,-150.0,0.0001374,2]
[331949443,1720890632402,-150.0,0.00013743,2]
[331949444,1720890632411,-150.0,0.00013744,2]
[331949445,1720890632420,-150.0,0.00013745,2]
[331949446,1720890632430,-150.0,0.00013748,2]
[331949447,1720890632439,-150.0,0.0001375,2]
[331949448,1720890632447,-150.0,0.0001376,2]
[331949449,1720890632457,-150.0,0.00013761,2]
[331949450,1720890632466,-150.0,0.00013762,2]
[331949451,1720890632475,-150.0,0.00013764,2]
[331949452,1720890632484,-150.0,0.00013765,2]
[331949453,1720890632494,-150.0,0.0001377,2]
[331949454,1720890632503,-150.0,0.00013771,2]
[331949455,1720890632512,-150.0,0.00013774,2]
[331949456,1720890632522,-150.0,0.00013775,2]
[331949457,1720890632531,-150.0,0.00013776,2]
[331949458,1720890632540,-150.0,0.00013777,2]
[331949459,1720890632549,-150.0,0.00013777,2]
[331949460,1720890632559,-150.0,0.00013779,2]
[331949461,1720890632568,-150.0,0.00013779,2]
[331949462,1720890632577,-150.0,0.00013784,2]
[331949463,1720890632586,-150.0,0.00013784,2]
[331949464,1720890632598,-150.0,0.00013785,2]
[331949465,1720890632608,-150.0,0.00013785,2]
[331949466,1720890632617,-150.0,0.00013788,2]
[331949467,1720890632628,-150.0,0.00013792,2]
[331949468,1720890632639,-150.0,0.00013794,2]
[331949469,1720890632648,-150.0,0.00013795,2]
[331949470,1720890632657,-150.0,0.00013796,2]
[331949471,1720890632668,-150.0,0.00013797,2]
[331949472,1720890632677,-268.85898304,0.000138,2]
[331949473,1720890632687,-366.51724332,0.00013802,2]
[331949474,1720890632696,-150.0,0.00013805,2]
[331949475,1720890632705,-150.0,0.00013809,2]
[331949476,1720890632714,-150.0,0.00013812,2]
[331949477,1720890632728,-150.0,0.00013817,2]
[331949478,1720890632737,-150.0,0.00013819,2]
[331949479,1720890632747,-150.0,0.0001382,2]
[331949480,1720890632756,-150.0,0.00013821,2]
[331949481,1720890632765,-150.0,0.00013825,2]
[331949482,1720890632774,-150.0,0.00013828,2]
[331949483,1720890632783,-150.0,0.00013838,2]
[331949484,1720890632792,-281.1911807,0.00013842,2]
[331949485,1720890632802,-150.0,0.00013843,2]
[331949486,1720890632811,-150.0,0.00013845,2]
[331949487,1720890632820,-150.0,0.00013846,2]
[331949488,1720890632829,-150.0,0.00013854,2]
[331949489,1720890632838,-150.0,0.00013858,2]
[331949490,1720890632848,-150.0,0.00013858,2]
[331949491,1720890632856,-150.0,0.0001386,2]
[331949492,1720890632865,-150.0,0.0001386,2]
[331949493,1720890632876,-153.18864,0.0001386,2]
[331949494,1720890632885,-150.0,0.0001386,2]
[331949495,1720890632894,-150.0,0.00013861,2]
[331949496,1720890632903,-150.0,0.00013863,2]
[331949497,1720890632912,-150.0,0.00013867,2]
[331949498,1720890632921,-150.0,0.00013869,2]
[331949499,1720890632931,-150.0,0.00013871,2]
[331949500,1720890632942,-150.0,0.00013875,2]
[331949501,1720890632953,-150.0,0.00013878,2]
[331949502,1720890632964,-150.0,0.00013878,2]
[331949503,1720890632973,-221.4142,0.0001388,2]
[331949504,1720890632983,-150.0,0.00013883,2]
[331949505,1720890632992,-150.0,0.00013885,2]
[331949506,1720890633002,-150.0,0.00013885,2]
[331949507,1720890633011,-150.0,0.00013887,2]
[331949508,1720890633020,-200.0,0.00013888,2]
[331949509,1720890633030,-165.27070694,0.00013889,2]
[331949510,1720890633039,-332.41439601,0.00013889,2]
[331949511,1720890633105,-319.19190356,0.00013889,2]
[331949512,1720890633115,-168.14640675,0.0001389,2]
[331949513,1720890633126,-150.0,0.00013891,2]
[331949514,1720890633135,-150.0,0.00013891,2]
[331949515,1720890633145,-150.0,0.00013895,2]
[331949516,1720890633154,-150.0,0.00013895,2]
[331949517,1720890633163,-168.14640675,0.00013895,2]
[331949518,1720890633172,-150.0,0.00013896,2]
[331949519,1720890633182,-150.0,0.00013896,2]
[331949520,1720890633192,-150.0,0.00013899,2]
[331949521,1720890633201,-150.0,0.00013899,2]
[331949522,1720890633210,-316.13999639,0.00013899,2]
[331949523,1720890633220,-156.26719113,0.00013899,2]
[331949524,1720890633229,-2289.2145,0.000139,2]
[331949525,1720890633239,-10000.0,0.000139,2]
[331949526,1720890633248,-150.0,0.000139,2]
[331949527,1720890633257,-1006.0,0.000139,2]
[331949528,1720890633267,-321.5650066,0.000139,2]
[331949529,1720890633276,-499.46768724,0.000139,2]
[331949530,1720890633285,-168.14640675,0.000139,2]
[331949531,1720890633295,-150.0,0.00013905,2]
[331949532,1720890633303,-155.95957183,0.00013907,2]
[331949533,1720890633315,-150.0,0.00013909,2]
[331949534,1720890633324,-150.0,0.0001391,2]
[331949535,1720890633334,-150.0,0.00013916,2]
[331949536,1720890633343,-268.85898299,0.00013922,2]
[331949537,1720890633353,-150.0,0.00013925,2]
[331949538,1720890633362,-150.0,0.00013929,2]
[331949539,1720890633372,-150.0,0.00013933,2]
[331949540,1720890633383,-150.0,0.00013933,2]
[331949541,1720890633392,-150.0,0.00013939,2]
[331949542,1720890633401,-150.0,0.00013951,2]
[331949543,1720890633411,-150.0,0.00013958,2]
[331949544,1720890633420,-150.0,0.0001396,2]
[331949545,1720890633430,-150.0,0.00013971,2]
[331949546,1720890633439,-150.0,0.00013972,2]
[331949547,1720890633449,-1120.829302,0.00013973,2]
[331949548,1720890633459,-150.0,0.00013974,2]
[331949549,1720890633468,-739.0,0.00013975,2]
[331949550,1720890633477,-361.0,0.0001398,2]
[331949551,1720890633487,-1659.0,0.0001398,2]
[331949552,1720890633496,-1830.0,0.0001398,2]
[331949553,1720890633506,-1251.0,0.0001398,2]
[331949554,1720890633515,-449.0,0.0001398,2]
[331949555,1720890633524,-809.0,0.0001398,2]
[331949556,1720890633534,-444.0,0.0001398,2]
[331949557,1720890633544,-619.0,0.0001398,2]
[331949558,1720890633553,-1305.0,0.0001398,2]
[331949559,1720890633563,-2377.0,0.0001398,2]
[331949560,1720890633572,-549.0,0.0001398,2]
[331949561,1720890633756,-3276.0,0.0001398,2]
[331949562,1720890633767,-1990.0,0.0001398,2]
[331949563,1720890633777,-150.0,0.00013983,2]
[331949564,1720890633787,-150.0,0.00013983,2]
[331949565,1720890633797,-150.0,0.00013984,2]
[331949566,1720890633807,-534.09,0.00013989,2]
[331949567,1720890633816,-401.14145963,0.00013989,2]
[331949568,1720890633826,-500.0,0.00013989,2]
[331949569,1720890633835,-564.34,0.00013989,2]
[331949570,1720890633845,-500.0,0.00013989,2]
[331949571,1720890633854,-2000.0,0.00013989,2]
[331949572,1720890633864,-599.35,0.00013989,2]
[331949573,1720890633875,-795.84,0.00013989,2]
[331949574,1720890633885,-612.15,0.00013989,2]
[331949575,1720890633894,-500.0,0.00013989,2]
[331949576,1720890633904,-155.64566313,0.00013989,2]
[331949577,1720890633912,-500.0,0.00013989,2]
[331949578,1720890633922,-526.04,0.00013989,2]
[331949579,1720890633932,-500.0,0.00013989,2]
[331949580,1720890633941,-500.0,0.00013989,2]
[331949581,1720890633950,-500.0,0.00013989,2]
[331949582,1720890633959,-500.0,0.00013989,2]
[331949583,1720890633968,-500.0,0.00013989,2]
[331949584,1720890633978,-563.12,0.00013989,2]
[331949585,1720890633987,-642.27,0.00013989,2]
[331949586,1720890633996,-500.0,0.00013989,2]
[331949587,1720890634006,-500.0,0.00013989,2]
[331949588,1720890634015,-623.63,0.00013989,2]
[331949589,1720890634024,-508.41,0.00013989,2]
[331949590,1720890634034,-825.25,0.00013989,2]
[331949591,1720890634043,-3133.52,0.00013989,2]
[331949592,1720890634053,-546.65,0.00013989,2]
[331949593,1720890634062,-500.0,0.00013989,2]
[331949594,1720890634072,-27.13656611,0.00013989,2]
[331949595,1720890634084,-472.86343389,0.00013989,2]
[331949596,1720890634093,-500.0,0.00013989,2]
[331949597,1720890634103,-543.95,0.00013989,2]
[331949598,1720890634112,-500.0,0.00013989,2]
[331949599,1720890634123,-263.7637037,0.00013989,2]
[331949600,1720890634134,-236.2362963,0.00013989,2]
[331949601,1720890634143,-638.58,0.00013989,2]
[331949602,1720890634152,-500.0,0.00013989,2]
[331949603,1720890634161,-500.0,0.00013989,2]
[331949604,1720890634171,-500.0,0.00013989,2]
[331949605,1720890634181,-1283.88,0.00013989,2]
[331949606,1720890634190,-380.58928978,0.00013989,2]
[331949607,1720890634200,-500.0,0.00013989,2]
[331949608,1720890634209,-741.55,0.00013989,2]
[331949609,1720890634218,-564.68,0.00013989,2]
[331949610,1720890634228,-500.0,0.00013989,2]
[331949611,1720890634237,-552.17,0.00013989,2]
[331949612,1720890634246,-163.84671005,0.00013989,2]
[331949613,1720890634255,-500.0,0.00013989,2]
[331949614,1720890634265,-500.0,0.00013989,2]
[331949615,1720890634274,-725.57,0.00013989,2]
[331949616,1720890634283,-500.0,0.00013989,2]
[331949617,1720890634293,-972.31,0.00013989,2]
[331949618,1720890634302,-254.25713924,0.00013989,2]
[331949619,1720890634311,-194.02066443,0.00013989,2]
[331949620,1720890634320,-500.0,0.00013989,2]
[331949621,1720890634330,-32225.3734994,0.0001399,2]
[331949622,1720890634339,-26563.671751,0.0001399,2]
[331949623,1720890634348,-20901.9700027,0.0001399,2]
[331949624,1720890634357,-15240.2682543,0.0001399,2]
[331949625,1720890634367,-9578.5665059,0.0001399,2]
[331949626,1720890634379,-6739.7492723,0.0001399,2]
[331949627,1720890634388,-5553.8836012,0.0001399,2]
[331949628,1720890634397,-4368.0179302,0.0001399,2]
[331949629,1720890634408,-3182.1522591,0.0001399,2]
[331949630,1720890634417,-1996.2865881,0.0001399,2]
[331949631,1720890634427,-1716.6792161,0.0001399,2]
[331949632,1720890634436,-1417.7645656,0.0001399,2]
[331949633,1720890634445,-1118.8499152,0.0001399,2]
[331949634,1720890634454,-819.9352648,0.0001399,2]
[331949635,1720890634463,-521.0206143,0.0001399,2]
[331949636,1720890634472,-150.0,0.00013993,2]
[331949637,1720890634482,-150.0,0.00013994,2]
[331949638,1720890634492,-150.0,0.00013994,2]
[331949639,1720890634501,-37887.0752478,0.00013998,2]
[331949640,1720890634510,-7925.6149433,0.00013998,2]
[331949641,1720890634519,-162.24707973,0.00013999,2]
[331949642,1720890634528,-500.0,0.00013999,2]
[331949643,1720890634537,-800.2,0.00013999,2]
[331949644,1720890634546,-500.0,0.00013999,2]
[331949645,1720890634555,-500.0,0.00013999,2]
[331949646,1720890634565,-500.0,0.00013999,2]
[331949647,1720890634574,-500.0,0.00013999,2]
[331949648,1720890634583,-500.0,0.00013999,2]
[331949649,1720890634595,-500.0,0.00013999,2]
[331949650,1720890634605,-500.0,0.00013999,2]
[331949651,1720890634614,-500.0,0.00013999,2]
[331949652,1720890634624,-500.0,0.00013999,2]
[331949653,1720890634634,-873.74,0.00013999,2]
[331949654,1720890634643,-520.79,0.00013999,2]
[331949655,1720890634652,-500.0,0.00013999,2]
[331949656,1720890634661,-500.0,0.00013999,2]
[331949657,1720890634671,-400.0,0.00013999,2]
[331949658,1720890634680,-186.42838529,0.00013999,2]
[331949659,1720890634690,-155.20412521,0.00013999,2]
[331949660,1720890634699,-72263.57835677,0.00014,2]
[331949661,1720890634710,-966.43463374,0.00014,2]
[331949662,1720890634722,-463.61871879,0.00014,2]
[331949663,1720890634734,-807.21423768,0.00014,2]
[331949664,1720890634746,-6827.34329163,0.00014,2]
[331949682,1720890637752,-520.06850352,0.00013128,2]
[331949683,1720890637762,-2936.3715267,0.00013648,2]
[331949684,1720890637771,-914.787,0.00013706,2]
[331949685,1720890637781,-5747.93312403,0.00013759,2]
[331949686,1720890637792,-1008.46115807,0.00013759,2]
[331949687,1720890637802,-500.0,0.00013989,2]
[331949688,1720890637812,-150.01,0.00013999,2]
[331949689,1720890637822,-641.58877683,0.00014,2]
[331949690,1720890637833,-300.0,0.00014,2]
[331949691,1720890637848,-2001.28043394,0.00014,2]
[331949692,1720890637863,-1291.06,0.00014,2]
[331949693,1720890637950,-545.8850205,0.00014,2]
[331949694,1720890639714,-12729.51414124,0.00014,2]
[331949695,1720890639829,-253.44497898,0.00014,2]
[331949696,1720890639843,-345.91147168,0.00014,2]
[331949697,1720890639887,-389.07431103,0.00014,2]
[331949698,1720890639898,-804.72955091,0.00014,2]
[331949699,1720890639911,-7856.8004089,0.00014,2]
[331949700,1720890640064,-6979.33207016,0.00014,2]
[331949897,1720890643932,-174.48415946,0.00013999,2]
[331949898,1720890643941,-5346.81957902,0.00014,2]
[331949899,1720890643957,-34484.99303155,0.00014,2]
[331949900,1720890643989,-31960.72901856,0.00014,2]
[331949901,1720890643999,-665.0,0.00014,2]
[331949902,1720890644008,-59955.7626744,0.00014,2]
[331949903,1720890644021,-214245.73956562,0.00014,2]
[331949904,1720890644037,-500.96727388,0.00014,2]
[331949905,1720890644048,-614.98003177,0.00014,2]
[331949906,1720890644060,-887305.62835916,0.00014,2]
[331949907,1720890644070,-854225.49173368,0.00014,2]
[331949908,1720890644081,-18727.74608,0.00014,2]
[331949909,1720890644092,-29072.25392,0.00014,2]
[331949925,1720890645933,-300.0,0.000132,4]
[331949926,1720890645943,-700.0,0.000133,4]
[331949927,1720890645954,-1199.0422498,0.00014,2]
[331949928,1720890645991,-1250.67193284,0.00014,2]
[331949929,1720890646002,-509.47908711,0.00014,2]
[331949930,1720890646013,-2171.6019,0.00014,2]
[331949931,1720890646025,-824.12818039,0.00014,2]
[331949932,1720890646055,-106265.57352686,0.00014,2]
[331949933,1720890646115,-43254.2867527,0.00014,2]
[331949989,1720890916712,592.76,0.00010737,2]
[331949991,1720890938596,774.92376784,0.00011199,2]
[331949992,1720890942358,290.05645915,0.00010737,2]
[331949993,1720890942394,1868.35343696,0.00011199,2]
[331949996,1720890959077,2982.16880793,0.00010737,2]
[331949997,1720890959286,1412.04342957,0.00010737,2]
[331949998,1720890961384,155.60439736,0.00010737,2]
[331949999,1720890961758,348.90717992,0.00010737,2]
[331950003,1720890988646,553.46300943,0.00010737,2]
[331950007,1720891014110,574.32707058,0.00011199,2]
[331950018,1720891083575,-257.90189278,0.0001126,2]
[331950019,1720891083595,-500.0,0.0001126,2]
[331950020,1720891083615,-208.0,0.0001218,2]
[331950021,1720891083635,-316.01466021,0.00012273,2]
[331950022,1720891083655,-208.0,0.0001228,2]
[331950023,1720891083674,-208.0,0.0001238,2]
[331950024,1720891083694,-208.0,0.0001248,2]
[331950025,1720891083713,-1226.68,0.00012579,2]
[331950026,1720891083736,-208.0,0.0001258,2]
[331950027,1720891083757,-250.0,0.00012595,2]
[331950028,1720891083777,-1000.0,0.00012613,2]
[331950029,1720891083797,-1348.31,0.00012648,2]
[331950030,1720891083818,-208.0,0.0001268,2]
[331950031,1720891083839,-370.2,0.00012686,2]
[331950032,1720891083858,-1955.44,0.00012686,2]
[331950033,1720891083878,-4636.78,0.00012687,2]
[331950034,1720891083898,-250.0,0.00012706,2]
[331950035,1720891083920,-154.98,0.00012725,2]
[331950036,1720891083940,-150.99,0.00012725,2]
[331950037,1720891083961,-1856.12,0.0001273,2]
[331950038,1720891083981,-208.0,0.0001278,2]
[331950039,1720891084000,-208.0,0.0001289,2]
[331950040,1720891084019,-500.0,0.00012904,2]
[331950041,1720891084039,-208.0,0.0001299,2]
[331950042,1720891084059,-1250.0,0.00013,2]
[331950046,1720891096450,-592.76,0.00013,2]
[331950047,1720891096470,-208.0,0.0001309,2]
[331950048,1720891096490,-150.0,0.0001309,2]
[331950049,1720891096510,-300.59,0.00013178,2]
[331950050,1720891096530,-208.0,0.0001319,2]
[331950051,1720891096550,-1077.62733686,0.00013284,2]
[331950052,1720891096570,-208.0,0.0001329,2]
[331950053,1720891096590,-208.0,0.0001339,2]
[331950054,1720891096611,-1100.0,0.000134,4]
[331950055,1720891096632,-208.0,0.0001349,2]
[331950056,1720891096652,-227.0,0.0001349,2]
[331950057,1720891096673,-1400.0,0.000135,4]
[331950059,1720891100463,210.45,0.00012893,2]
[331950060,1720891101663,-186.42838529,0.00013543,2]
[331950061,1720891101685,-247.10224997,0.00013574,2]
[331950062,1720891101707,-208.0,0.0001359,2]
[331950063,1720891101727,-227.0,0.0001359,2]
[331950064,1720891101752,-1800.0,0.000136,4]
[331950065,1720891101776,-330.22881434,0.00013699,2]
[331950066,1720891101797,-200.0,0.00013699,2]
[331950067,1720891101819,-1007.89,0.00013699,2]
[331950068,1720891101839,-250.0,0.00013699,2]
[331950069,1720891101860,-153.32,0.00013699,2]
[331950070,1720891101880,-300.0,0.000137,5]
[331950071,1720891101901,-208.0,0.000137,2]
[331950072,1720891101921,-227.0,0.000137,2]
[331950073,1720891101943,-1500.0,0.00013732,2]
[331950074,1720891101964,-1322.6467692,0.00013736,2]
[331950075,1720891101985,-330.22881434,0.00013753,2]
[331950076,1720891102005,-300.0,0.00013758,2]
[331950077,1720891102029,-408.31107701,0.00013761,2]
[331950087,1720891144637,167.46,0.00010329,2]
[331950149,1720891447333,403.4503373,0.00011199,2]
[331950155,1720891458281,-500.0,0.0001126,2]
[331950156,1720891459201,533.48,0.00010957,2]
[331950162,1720891500243,5850.70166692,0.00011199,2]
[331950165,1720891519079,500.0,0.0001126,2]
[331950169,1720891540127,2615.81833308,0.00011199,2]
[331950170,1720891540150,2775.52804374,0.00011199,2]
[331950174,1720891575308,202.25757491,0.00011199,2]
[331950189,1720891643016,155.7163574,0.00011199,2]
[331950445,1720891831879,-161.19035565,0.00012202,2]
[331950446,1720891831888,-882.59216232,0.0001259,2]
[331950447,1720891831898,-565.27906203,0.00012859,2]
[331950448,1720891831915,-434.72093797,0.00012859,2]
[331950449,1720891831925,-150.0,0.00012864,2]
[331950450,1720891831934,-250.0,0.00012868,2]
[331950451,1720891831943,-293.25,0.00012873,2]
[331950452,1720891831953,-500.0,0.00012904,2]
[331950453,1720891831966,-366.13143144,0.00013128,2]
[331950454,1720891831976,-224.19058112,0.00013128,2]
[331950455,1720891831985,-533.48,0.00013221,2]
[331950457,1720891831997,-1915.70092765,0.00013472,2]
[331950458,1720891832008,-258.60629429,0.00013472,2]
[331950459,1720891832025,-3342.3719787,0.00013472,2]
[331950460,1720891832037,-296.07526802,0.000135,2]
[331950461,1720891832047,-186.42838529,0.00013516,2]
[331950462,1720891832057,-206.40300481,0.00013543,2]
[331950463,1720891832066,-413.27406791,0.00013574,2]
[331950464,1720891832075,-155.14665417,0.00013574,2]
[331950465,1720891832085,-905.14,0.000136,2]
[331950466,1720891832095,-503.94,0.00013699,2]
[331950467,1720891832104,-965.4,0.00013699,2]
[331950468,1720891832114,-940.90544796,0.00013736,2]
[331950469,1720891832125,-1265.84016916,0.00013736,2]
[331950470,1720891832134,-528.85282997,0.00013736,2]
[331950471,1720891832143,-1444.63841623,0.00013736,2]
[331950472,1720891832152,-206.23576063,0.00013748,2]
[331950473,1720891832164,-1293.76423937,0.00013748,2]
[331950474,1720891832173,-300.0,0.00013751,2]
[331950475,1720891832182,-1500.0,0.00013757,2]
[331950476,1720891832191,-926.2909581,0.00013759,2]
[331950477,1720891832598,-573.7090419,0.00013759,2]
[331950478,1720891832607,-640.22844814,0.00013761,2]
[331950479,1720891832621,-334.61,0.00013761,2]
[331950480,1720891832639,-116.85047485,0.00013761,2]
[331950481,1720891832649,-404.27389715,0.00013794,2]
[331950499,1720891837876,-644.47142518,0.00013736,2]
[331950504,1720891837960,-520.25670657,0.00013736,2]
[331950505,1720891837972,-279.91028448,0.00013736,2]
[331950506,1720891837982,-1095.72610285,0.00013794,2]
[331950507,1720891837991,-150.0,0.00013797,2]
[331950508,1720891838003,-2345.761024,0.00013798,2]
[331950509,1720891838014,-131.31840223,0.00013798,2]
[331950510,1720891838042,-3387.32313377,0.00013798,2]
[331950511,1720891838054,-3374.36339679,0.00013798,2]
[331950512,1720891838086,-706.17607776,0.00013798,2]
[331950656,1720891840008,-610.98257345,0.00013798,2]
[331950657,1720891840018,-729.85264348,0.00013798,2]
[331950658,1720891840092,-5134.54991652,0.00013798,2]
[331950659,1720891840102,-8210.163585,0.00013798,2]
[331950660,1720891840111,-9383.044097,0.00013798,2]
[331950661,1720891840121,-1500.0,0.00013798,2]
[331950662,1720891840131,-208.0,0.000138,2]
[331950663,1720891840141,-227.0,0.000138,2]
[331950664,1720891840150,-1500.0,0.00013804,2]
[331950665,1720891840160,-330.22881434,0.00013808,2]
[331950666,1720891840169,-436.94615997,0.00013825,2]
[331950667,1720891840179,-1500.0,0.00013827,2]
[331950668,1720891840188,-1500.0,0.00013828,2]
[331950669,1720891840197,-1500.0,0.00013858,2]
[331950670,1720891840207,-3000.0,0.0001386,2]
[331950671,1720891840216,-330.22881434,0.00013863,2]
[331950672,1720891840225,-300.0,0.00013871,2]
[331950673,1720891840234,-1500.0,0.00013873,2]
[331950674,1720891840244,-1500.0,0.00013873,2]
[331950675,1720891840253,-13142.7856,0.0001388,2]
[331950676,1720891840262,-5177.39146936,0.0001388,2]
[331950677,1720891840271,-355.33201987,0.0001388,2]
[331950678,1720891840281,-355.33201979,0.00013882,2]
[331950679,1720891840291,-355.33201979,0.00013884,2]
[331950680,1720891840300,-355.33201979,0.00013887,2]
[331950681,1720891840310,-500.0,0.00013887,2]
[331950682,1720891840319,-500.0,0.00013888,2]
[331950683,1720891840329,-500.0,0.00013888,2]
[331950684,1720891840338,-200.0,0.00013888,2]
[331950685,1720891840348,-355.33201979,0.00013889,2]
[331950686,1720891840357,-1500.0,0.00013889,2]
[331950687,1720891840366,-5339.74503614,0.00013889,2]
[331950688,1720891840376,-626.36373021,0.00013889,2]
[331950689,1720891840385,-155.0,0.00013889,2]
[331950690,1720891840395,-24700.2276,0.0001389,2]
[331950691,1720891840404,-300.0,0.00013891,2]
[331950692,1720891840414,-355.33201979,0.00013891,2]
[331950693,1720891840423,-355.33201979,0.00013893,2]
[331950694,1720891840432,-355.33201979,0.00013896,2]
[331950695,1720891840442,-355.33201979,0.00013898,2]
[331950696,1720891840452,-1500.0,0.00013899,2]
[331950697,1720891840462,-604.78351958,0.00013899,2]
[331950698,1720891840471,-217.90047204,0.00013899,2]
[331950699,1720891840480,-208.0,0.000139,2]
[331950700,1720891840489,-227.0,0.000139,2]
[331950701,1720891840499,-10000.0,0.000139,2]
[331950702,1720891840508,-261.0,0.000139,2]
[331950703,1720891840518,-52979.77696885,0.000139,2]
[331950704,1720891840527,-355.33201979,0.000139,2]